bitfinex-derivatives/quotes_BTCF0:USTF0_20250709
["timestamp","ask_amount","ask_price","bid_price","bid_amount"]
[1752027883317,1.73540718,108800.0,108790.0,0.14437108]
[1752027883818,1.73540718,108800.0,108790.0,0.12883108]
[1752027884614,1.73540718,108800.0,108790.0,0.14414108]
[1752027884919,1.73540718,108800.0,108790.0,0.12883108]
[1752027886715,1.73540718,108800.0,108790.0,0.14414108]
[1752027886917,1.73540718,108800.0,108790.0,0.12883108]
[1752027887416,1.73540718,108800.0,108790.0,0.18398849]
[1752027887719,1.73540718,108800.0,108790.0,0.14279305]
[1752027888219,1.73540718,108800.0,108790.0,0.15810305]
[1752027890413,1.73540718,108800.0,108790.0,0.15810324]
[1752027896522,1.2342595,108800.0,108790.0,0.15810324]
[1752027896822,1.73540718,108800.0,108790.0,0.15810324]
[1752027897829,1.73540718,108800.0,108790.0,0.14414127]
[1752027904930,1.73540718,108800.0,108790.0,0.19930871]
[1752027905126,1.73480718,108800.0,108790.0,0.14414127]
[1752027911842,1.73480718,108800.0,108790.0,0.12977262]
[1752027912054,1.73480718,108800.0,108790.0,0.14414085]
[1752027912653,1.73480718,108800.0,108790.0,0.12883085]
[1752027915453,1.73480718,108800.0,108790.0,0.31262725]
[1752027915952,1.73480718,108800.0,108790.0,0.12883085]
[1752027917152,1.2336595,108800.0,108790.0,0.31262725]
[1752027917354,1.73480718,108800.0,108790.0,0.31262725]
[1752027917853,1.73480718,108800.0,108790.0,0.10143675]
[1752027918055,1.73480718,108800.0,108790.0,0.1428138]
[1752027920958,1.73480718,108800.0,108790.0,0.14281397]
[1752027926069,0.9136595,108800.0,108790.0,0.14281397]
[1752027926259,1.0236595,108800.0,108790.0,0.14281397]
[1752027926458,1.72480718,108800.0,108790.0,0.14281397]
[1752027926660,1.72480718,108800.0,108790.0,0.12844557]
[1752027926865,1.72480718,108800.0,108790.0,0.14281397]
[1752027927866,1.72480718,108800.0,108790.0,0.12883102]
[1752027929970,1.72480718,108800.0,108790.0,0.56320126]
[1752027930169,1.72480718,108800.0,108790.0,0.57846126]
[1752027930170,1.72700718,108800.0,108790.0,0.57846126]
[1752027931171,1.72700718,108800.0,108790.0,0.56320126]
[1752027931770,1.72700718,108800.0,108790.0,0.57846126]
[1752027932470,1.72700718,108800.0,108790.0,0.54391663]
[1752027933271,1.50700718,108800.0,108790.0,0.10954639]
[1752027933572,1.77700718,108800.0,108790.0,0.10954639]
[1752027935373,1.77700718,108800.0,108790.0,0.09517811]
[1752027935575,1.77700718,108800.0,108790.0,0.10954639]
[1752027938274,1.77700718,108800.0,108790.0,0.09517811]
[1752027938573,1.77700718,108800.0,108790.0,0.10954639]
[1752027939767,1.51700718,108800.0,108790.0,0.16471657]
[1752027939967,1.78700718,108800.0,108790.0,0.16471657]
[1752027944078,1.78700718,108800.0,108790.0,0.16471648]
[1752027944784,1.78700718,108800.0,108790.0,0.34851288]
[1752027947681,1.78700718,108800.0,108790.0,0.2933427]
[1752027949176,0.9158595,108800.0,108790.0,0.2933427]
[1752027949382,1.73700718,108800.0,108790.0,0.2933427]
[1752027949772,1.73700718,108800.0,108790.0,0.27897442]
[1752027949979,1.73700718,108800.0,108790.0,0.2933427]
[1752027951382,0.3413895,108800.0,108790.0,0.56043654]
[1752027951581,1.48808334,108800.0,108790.0,0.62073654]
[1752027951781,1.50320334,108800.0,108790.0,0.62073654]
[1752027952882,1.53500334,108800.0,108790.0,0.62073654]
[1752027955780,0.2883095,108800.0,108790.0,0.56043654]
[1752027955986,0.8279395,108800.0,108790.0,0.88303789]
[1752027956185,0.8128195,108800.0,108790.0,0.94723789]
[1752027956385,0.8279395,108800.0,108790.0,0.94723789]
[1752027956686,0.8279395,108800.0,108790.0,1.02980138]
[1752027956981,1.06339334,108800.0,108790.0,1.02980138]
[1752027957284,1.07851334,108800.0,108790.0,1.02980138]
[1752027957483,0.8451696,108800.0,108790.0,1.02980138]
[1752027957686,0.8451696,108800.0,108790.0,0.97463654]
[1752027957986,0.8451696,108800.0,108790.0,0.97077044]
[1752027958485,0.0353501,108800.0,108790.0,0.97077044]
[1752027958687,0.18390078,108810.0,108800.0,0.1837795]
[1752027958884,0.89233099,108820.0,108810.0,0.1837626]
[1752027959079,0.28129099,108820.0,108810.0,0.54407443]
[1752027959284,0.43433064,108820.0,108810.0,0.54407443]
[1752027959480,0.70002448,108820.0,108810.0,0.04403799]
[1752027959686,1.22703867,108820.0,108810.0,0.04403799]
[1752027960374,1.14462448,108820.0,108810.0,0.14054618]
[1752027960579,1.14762448,108820.0,108810.0,0.14054618]
[1752027961186,1.14762448,108820.0,108810.0,0.09918553]
[1752027961386,1.14762448,108820.0,108810.0,0.14050278]
[1752027962491,1.76374448,108820.0,108810.0,0.32426538]
[1752027962790,1.76374448,108820.0,108810.0,0.26911784]
[1752027963679,1.13762448,108820.0,108810.0,0.26911784]
[1752027963884,1.78675448,108820.0,108810.0,0.26911784]
[1752027964390,1.77563448,108820.0,108810.0,0.26911784]
[1752027964780,1.77563448,108820.0,108810.0,0.51969168]
[1752027964983,1.77563448,108820.0,108810.0,0.26911784]
[1752027966992,1.40563448,108820.0,108810.0,0.26911784]
[1752027967190,1.78563448,108820.0,108810.0,0.26911784]
[1752027967888,1.76254448,108820.0,108810.0,0.32426538]
[1752027968091,1.78563448,108820.0,108810.0,0.32426538]
[1752027969291,1.78563448,108820.0,108810.0,0.57483922]
[1752027969591,1.15506064,108820.0,108810.0,0.57483922]
[1752027971494,0.9044868,108820.0,108810.0,0.57483922]
[1752027971690,1.17018064,108820.0,108810.0,0.57483922]
[1752027972588,1.75075448,108820.0,108810.0,0.32426538]
[1752027972793,1.75075448,108820.0,108810.0,0.57483922]
[1752027973795,1.75075448,108820.0,108810.0,0.58841093]
[1752027973999,1.75075448,108820.0,108810.0,0.09892695]
[1752027974994,1.75075448,108820.0,108810.0,0.09892713]
[1752027975194,1.75075448,108820.0,108810.0,0.09892498]
[1752027978089,1.75075448,108820.0,108810.0,0.15407252]
[1752027980901,1.75075448,108820.0,108810.0,0.15407131]
[1752027981207,0.9996068,108820.0,108810.0,0.15407131]
[1752027981501,1.78075448,108820.0,108810.0,0.15407131]
[1752027982898,1.78075448,108820.0,108810.0,0.14329725]
[1752027983403,1.78075448,108820.0,108810.0,0.14327029]
[1752027984307,1.78075448,108820.0,108810.0,0.10198]
[1752027985203,1.78075448,108820.0,108810.0,0.11275442]
[1752027985403,1.78075448,108820.0,108810.0,0.19531791]
[1752027987906,1.2796068,108820.0,108810.0,0.19531791]
[1752027988106,1.78075448,108820.0,108810.0,0.19531791]
[1752027989006,1.2796068,108820.0,108810.0,0.19531791]
[1752027989207,1.78075448,108820.0,108810.0,0.19531791]
[1752027989405,1.78075448,108820.0,108810.0,0.14017037]
[1752027989604,1.78075448,108820.0,108810.0,0.14017043]
[1752027995219,1.49075448,108820.0,108810.0,0.14017043]
[1752027995413,1.73688448,108820.0,108810.0,0.32393303]
[1752027995719,1.73688448,108820.0,108810.0,0.31315855]
[1752027995920,1.73688448,108820.0,108810.0,0.32393281]
[1752027996507,1.73688448,108820.0,108810.0,0.56093476]
[1752027997214,1.73688448,108820.0,108810.0,0.57756476]
[1752027997409,1.73688448,108820.0,108810.0,0.60786476]
[1752027998221,1.73688448,108820.0,108810.0,0.6175187]
[1752027998824,1.20197064,108820.0,108810.0,0.59123476]
[1752027999024,1.22631064,108820.0,108810.0,0.60786476]
[1752027999221,1.47688448,108820.0,108810.0,0.60786476]
[1752027999628,1.47688448,108820.0,108810.0,0.58272464]
[1752027999819,1.47688448,108820.0,108810.0,0.60786418]
[1752028000018,0.9757368,108820.0,108810.0,0.60786418]
[1752028000218,1.50180064,108820.0,108810.0,0.60786418]
[1752028000626,0.87576064,108820.0,108810.0,0.60786418]
[1752028000827,1.50168064,108820.0,108810.0,0.60786418]
[1752028002127,0.9911068,108820.0,108810.0,0.60786418]
[1752028002328,1.17168064,108820.0,108810.0,0.60786418]
[1752028002629,1.52168064,108820.0,108810.0,0.60786418]
[1752028005826,1.49168064,108820.0,108810.0,0.60786418]
[1752028007235,0.9211068,108820.0,108810.0,0.60786418]
[1752028007432,1.78225448,108820.0,108810.0,0.60786418]
[1752028007632,1.78225448,108820.0,108810.0,0.35729034]
[1752028007833,1.78225448,108820.0,108810.0,0.60786418]
[1752028008032,1.78225448,108820.0,108810.0,0.64638661]
[1752028008534,1.17168064,108820.0,108810.0,0.64638661]
[1752028008742,1.51168064,108820.0,108810.0,0.64638661]
[1752028009536,1.51168064,108820.0,108810.0,0.56382312]
[1752028009938,1.53168064,108820.0,108810.0,0.56382312]
[1752028010238,1.53168064,108820.0,108810.0,0.55304903]
[1752028010436,1.53168064,108820.0,108810.0,0.56382312]
[1752028010939,1.53168064,108820.0,108810.0,0.58018312]
[1752028011238,1.53168064,108820.0,108810.0,0.56382312]
[1752028012038,1.53168064,108820.0,108810.0,0.58018312]
[1752028012336,1.53168064,108820.0,108810.0,0.56382312]
[1752028013537,1.53168064,108820.0,108810.0,0.55304903]
[1752028013732,1.53168064,108820.0,108810.0,0.56382312]
[1752028014340,0.9211068,108820.0,108810.0,0.56382312]
[1752028014643,1.48168064,108820.0,108810.0,0.56382312]
[1752028014840,1.48168064,108820.0,108810.0,0.31324928]
[1752028015141,1.48168064,108820.0,108810.0,0.58018312]
[1752028015638,1.52168064,108820.0,108810.0,0.58018312]
[1752028016140,0.2951868,108820.0,108810.0,0.58018312]
[1752028016439,1.17132064,108820.0,108810.0,0.66274661]
[1752028016639,1.17152064,108820.0,108810.0,0.69384661]
[1752028016839,1.06725064,108820.0,108810.0,0.69384661]
[1752028017139,1.09166064,108820.0,108810.0,0.69384661]
[1752028017340,1.09166064,108820.0,108810.0,0.61128312]
[1752028017529,1.12316064,108820.0,108810.0,0.61128312]
[1752028017732,1.40443448,108820.0,108810.0,0.36070928]
[1752028017940,1.40443448,108820.0,108810.0,0.63869418]
[1752028018338,1.75443448,108820.0,108810.0,0.38812034]
[1752028018545,1.75143448,108820.0,108810.0,0.12659774]
[1752028018843,1.75343448,108820.0,108810.0,0.12659774]
[1752028021141,1.75343448,108820.0,108810.0,0.14295774]
[1752028021338,1.75343448,108820.0,108810.0,0.12659774]
[1752028021738,1.75343448,108820.0,108810.0,0.14295768]
[1752028021935,1.75343448,108820.0,108810.0,0.12659768]
[1752028022242,1.40343448,108820.0,108810.0,0.12659768]
[1752028022438,1.72343448,108820.0,108810.0,0.12659768]
[1752028022839,1.71943448,108820.0,108810.0,0.12659768]
[1752028023040,1.72143448,108820.0,108810.0,0.12659768]
[1752028024542,1.72143448,108820.0,108810.0,0.12659793]
[1752028027649,1.72143448,108820.0,108810.0,0.16285608]
[1752028027650,1.97200832,108820.0,108810.0,0.16285608]
[1752028027838,1.97200832,108820.0,108810.0,0.09388569]
[1752028028154,1.97200832,108820.0,108810.0,0.12447926]
[1752028028351,2.15580833,108820.0,108810.0,0.12447926]
[1752028028541,2.15580833,108820.0,108810.0,0.10560466]
[1752028029144,2.15580833,108820.0,108810.0,0.05496095]
[1752028029443,2.15580833,108820.0,108810.0,0.05522247]
[1752028030143,2.15580833,108820.0,108810.0,0.01385462]
[1752028030441,2.23822252,108820.0,108810.0,0.01385462]
[1752028032756,1.486501,108820.0,108810.0,0.01385462]
[1752028033048,2.15580833,108820.0,108810.0,0.01385462]
[1752028033650,1.97200832,108820.0,108810.0,0.01385462]
[1752028040557,1.97200832,108820.0,108810.0,0.02822329]
[1752028041754,1.97200832,108820.0,108810.0,0.02822333]
[1752028047157,0.1837794,108800.0,108790.0,0.10380617]
[1752028047461,1.6737523,108800.0,108790.0,0.26807542]
[1752028047764,1.6831123,108800.0,108790.0,0.26807542]
[1752028048058,1.69238393,108800.0,108790.0,0.26807542]
[1752028048258,0.1837794,108800.0,108790.0,0.70344556]
[1752028048450,0.8095794,108800.0,108790.0,0.72743556]
[1752028048656,0.8095794,108800.0,108790.0,0.99743556]
[1752028049264,0.8249394,108800.0,108790.0,0.74686172]
[1752028049466,0.8249394,108800.0,108790.0,0.99743556]
[1752028049663,0.8249394,108800.0,108790.0,0.99843556]
[1752028049954,0.8095794,108800.0,108790.0,0.99843556]
[1752028050159,0.8249394,108800.0,108790.0,0.99843556]
[1752028050659,0.1991394,108800.0,108790.0,0.98406685]
[1752028050860,0.1991394,108800.0,108790.0,0.93192247]
[1752028051362,0.8252994,108800.0,108790.0,1.01448596]
[1752028051965,0.8099394,108800.0,108790.0,0.99924596]
[1752028052166,0.8099394,108800.0,108790.0,1.01448596]
[1752028052463,0.8099394,108800.0,108790.0,1.03373517]
[1752028053665,0.8099394,108800.0,108790.0,0.78373517]
[1752028053866,0.8252994,108800.0,108790.0,0.70117168]
[1752028056666,1.07587324,108800.0,108790.0,0.70117168]
[1752028058067,1.07587324,108800.0,108790.0,0.74250388]
[1752028059063,1.07587324,108800.0,108790.0,0.70117168]
[1752028059264,1.07587324,108800.0,108790.0,0.74251619]
[1752028059468,1.07587324,108800.0,108790.0,0.70117168]
[1752028060664,0.8252994,108800.0,108790.0,0.70117168]
[1752028060870,0.8252994,108800.0,108790.0,0.45059784]
[1752028061058,0.8252994,108800.0,108790.0,0.70117168]
[1752028062672,0.8252994,108800.0,108790.0,0.89117168]
[1752028062972,0.8252994,108800.0,108790.0,0.69117168]
[1752028063468,0.8252994,108800.0,108790.0,0.82885402]
[1752028064970,0.8252994,108800.0,108790.0,0.74629053]
[1752028065468,1.07587324,108800.0,108790.0,0.74629053]
[1752028067876,1.07587324,108800.0,108790.0,0.7460431]
[1752028068178,1.07587324,108800.0,108790.0,0.77348774]
[1752028069675,0.8252994,108800.0,108790.0,0.78764737]
[1752028071877,0.8252994,108800.0,108790.0,0.76365737]
[1752028072379,0.8252994,108800.0,108790.0,0.76365233]
[1752028073082,1.07587324,108800.0,108790.0,0.76365233]
[1752028073277,0.8252994,108800.0,108790.0,0.76365233]
[1752028073683,0.8252994,108800.0,108790.0,0.76365281]
[1752028074684,0.8252994,108800.0,108790.0,0.74949138]
[1752028074982,0.8584994,108800.0,108790.0,0.74949138]
[1752028077189,0.8894994,108800.0,108790.0,0.74949138]
[1752028078186,0.8894994,108800.0,108790.0,0.66692789]
[1752028078685,0.8894994,108800.0,108790.0,0.6810958]
[1752028081586,0.8894994,108800.0,108790.0,0.76384414]
[1752028081796,0.8894994,108800.0,108790.0,0.6810958]
[1752028082091,0.8894994,108800.0,108790.0,0.6505958]
[1752028082590,1.14007324,108800.0,108790.0,0.6505958]
[1752028082992,1.14007324,108800.0,108790.0,0.73417479]
[1752028083793,1.14007324,108800.0,108790.0,0.6514258]
[1752028084694,1.16429324,108800.0,108790.0,0.6213258]
[1752028084892,1.16429324,108800.0,108790.0,0.70407466]
[1752028085093,1.16429324,108800.0,108790.0,0.6213258]
[1752028085692,1.16429324,108800.0,108790.0,0.6052558]
[1752028086388,1.16429324,108800.0,108790.0,0.6213258]
[1752028086588,1.16429324,108800.0,108790.0,0.6052558]
[1752028086795,1.16429324,108800.0,108790.0,0.6213258]
[1752028087292,1.16429324,108800.0,108790.0,0.60769558]
[1752028087489,1.16429324,108800.0,108790.0,0.62133178]
[1752028089496,1.16429324,108800.0,108790.0,0.70408314]
[1752028090190,1.16429324,108800.0,108790.0,0.70410549]
[1752028094107,0.9137194,108800.0,108790.0,0.70410549]
[1752028094403,1.16429324,108800.0,108790.0,0.70410549]
[1752028095303,1.16429324,108800.0,108790.0,0.62135413]
[1752028096005,1.16429324,108800.0,108790.0,0.62142948]
[1752028097403,1.16429324,108800.0,108790.0,0.87142948]
[1752028098110,1.16429324,108800.0,108790.0,0.95417865]
[1752028099305,1.16429324,108800.0,108790.0,0.93993539]
[1752028099707,1.16429324,108800.0,108790.0,0.92627684]
[1752028100307,1.16429324,108800.0,108790.0,0.98144145]
[1752028100711,1.16429324,108800.0,108790.0,0.92627684]
[1752028100913,1.16429324,108800.0,108790.0,0.67627684]
[1752028101210,1.16429324,108800.0,108790.0,0.88627684]
[1752028101402,0.8883394,108800.0,108790.0,0.88627684]
[1752028101602,0.8883394,108800.0,108790.0,0.97627684]
[1752028101803,0.07956,108800.0,108790.0,1.22685068]
[1752028102005,0.01536,108800.0,108790.0,1.90701445]
[1752028102209,0.01536,108800.0,108790.0,1.82426528]
[1752028102508,0.01536,108800.0,108790.0,1.90701445]
[1752028103206,0.01536,108800.0,108790.0,1.65644061]
[1752028103508,0.1991394,108800.0,108790.0,1.65644061]
[1752028103698,0.1991394,108800.0,108790.0,1.57369144]
[1752028103902,0.1991394,108800.0,108790.0,1.65644061]
[1752028104304,0.01536,108800.0,108790.0,1.65644061]
[1752028106909,0.1991394,108800.0,108790.0,1.65644061]
[1752028107710,0.1991394,108800.0,108790.0,1.40586677]
[1752028107909,0.44971324,108800.0,108790.0,1.65644061]
[1752028108111,0.44971324,108800.0,108790.0,1.60127684]
[1752028108310,0.44971324,108800.0,108790.0,1.61551629]
[1752028109111,0.44971324,108800.0,108790.0,1.62911148]
[1752028109811,0.48271324,108800.0,108790.0,1.62911148]
[1752028110210,0.51401324,108800.0,108790.0,1.62911148]
[1752028111711,0.2634394,108800.0,108790.0,1.62911148]
[1752028112113,0.2634394,108800.0,108790.0,1.54636231]
[1752028113212,0.07966,108800.0,108790.0,1.62908239]
[1752028115214,0.04666,108800.0,108790.0,1.62908239]
[1752028115414,0.01536,108800.0,108790.0,1.62908239]
[1752028116119,0.1991394,108800.0,108790.0,1.6154872]
[1752028117418,0.01536,108800.0,108790.0,1.53276712]
[1752028118120,0.01536,108800.0,108790.0,1.64258539]
[1752028118514,0.01536,108800.0,108790.0,1.64268891]
[1752028120019,0.01536,108800.0,108790.0,1.61558623]
[1752028121815,0.01536,108800.0,108790.0,1.53287064]
[1752028122022,0.01536,108800.0,108790.0,1.78344448]
[1752028122223,1.04013726,108810.0,108800.0,0.1837794]
[1752028122524,1.2907111,108810.0,108800.0,1.22789672]
[1752028122921,1.2907111,108810.0,108800.0,1.18712672]
[1752028123223,0.6657111,108810.0,108800.0,1.18712672]
[1752028123524,0.6810311,108810.0,108800.0,1.18712672]
[1752028123722,0.6810311,108810.0,108800.0,0.93655288]
[1752028124023,0.6810311,108810.0,108800.0,0.95262288]
[1752028124428,0.7041311,108810.0,108800.0,0.60262288]
[1752028125018,0.7051311,108810.0,108800.0,0.60262288]
[1752028125723,0.7051311,108810.0,108800.0,0.54748021]
[1752028125924,0.7051311,108810.0,108800.0,0.60262507]
[1752028126624,0.7051311,108810.0,108800.0,0.61618155]
[1752028127022,0.7051311,108810.0,108800.0,0.36560771]
[1752028127225,0.7051311,108810.0,108800.0,0.61618155]
[1752028132232,0.7051311,108810.0,108800.0,0.53346755]
[1752028132530,0.7051311,108810.0,108800.0,0.61618155]
[1752028133030,0.7051311,108810.0,108800.0,0.61619371]
[1752028133717,0.7051311,108810.0,108800.0,0.36561987]
[1752028133919,0.7051311,108810.0,108800.0,0.61619371]
[1752028136030,0.7051311,108810.0,108800.0,0.61620844]
[1752028137537,0.7051311,108810.0,108800.0,0.53349444]
[1752028139735,0.7051311,108810.0,108800.0,0.51990085]
[1752028140237,0.7051311,108810.0,108800.0,0.53349425]
[1752028141137,0.7051311,108810.0,108800.0,0.54426954]
[1752028141835,0.7051311,108810.0,108800.0,0.54430384]
[1752028143138,0.7051311,108810.0,108800.0,0.36052444]
[1752028143637,0.7051311,108810.0,108800.0,0.54430384]
[1752028147141,0.7051311,108810.0,108800.0,0.54430594]
[1752028148041,0.7051311,108810.0,108800.0,0.53053039]
[1752028148534,1.3855852,108810.0,108800.0,0.03873784]
[1752028148733,0.1837794,108800.0,108790.0,0.1176017]
[1752028148935,0.1837794,108800.0,108780.0,0.13799644]
[1752028148936,0.1837963,108790.0,108780.0,0.13799644]
[1752028149132,0.1838301,108770.0,108760.0,0.31816562]
[1752028149338,0.1838301,108770.0,108760.0,0.27218283]
[1752028149538,0.1838301,108770.0,108760.0,0.22293649]
[1752028149739,0.2564764,108770.0,108760.0,0.57293649]
[1752028150033,0.86179468,108770.0,108760.0,0.41590816]
[1752028150238,0.88631468,108770.0,108760.0,0.60570553]
[1752028150635,0.61089024,108770.0,108760.0,0.34000169]
[1752028150839,0.61089024,108770.0,108760.0,0.52632844]
[1752028151143,0.77668267,108770.0,108760.0,0.54145844]
[1752028151548,0.58398993,108770.0,108760.0,0.64145844]
[1752028152039,0.58598993,108770.0,108760.0,0.64145844]
[1752028152240,0.5521227,108770.0,108760.0,0.5954748]
[1752028152442,0.5521227,108770.0,108760.0,0.6414359]
[1752028153340,0.64545212,108770.0,108760.0,0.6414359]
[1752028154748,0.64545212,108770.0,108760.0,0.5414359]
[1752028154940,0.6279825,108770.0,108760.0,0.5414359]
[1752028155840,0.37740866,108770.0,108760.0,0.8514359]
[1752028156048,0.19665146,108770.0,108760.0,1.18776974]
[1752028156250,0.39683156,108770.0,108760.0,1.18776974]
[1752028156643,0.39683156,108770.0,108760.0,1.16540974]
[1752028157350,0.38487545,108770.0,108760.0,1.16540974]
[1752028158150,0.24740067,108770.0,108760.0,1.16540974]
[1752028158346,0.35527873,108770.0,108760.0,1.18776974]
[1752028158947,0.17144863,108770.0,108760.0,1.18776974]
[1752028159356,0.35527873,108770.0,108760.0,1.18776974]
[1752028159856,0.35527873,108770.0,108760.0,1.16540974]
[1752028160054,0.35327873,108770.0,108760.0,1.16540974]
[1752028160458,0.35327873,108770.0,108760.0,1.16640974]
[1752028160660,0.35327873,108770.0,108760.0,1.1951499]
[1752028160849,0.29287334,108770.0,108760.0,0.49390393]
[1752028161050,0.32617334,108770.0,108760.0,1.19045441]
[1752028161254,0.29973357,108770.0,108760.0,1.19045441]
[1752028161659,0.29973357,108770.0,108760.0,1.18945441]
[1752028162062,0.2847884,108770.0,108760.0,1.18945441]
[1752028163266,0.26179584,108770.0,108760.0,1.18945441]
[1752028164064,0.27946029,108770.0,108760.0,1.15264224]
[1752028165365,0.27946029,108770.0,108760.0,0.57652456]
[1752028165366,0.30223029,108770.0,108760.0,0.57652456]
[1752028165572,0.55280413,108770.0,108760.0,1.71877224]
[1752028166166,0.54682606,108770.0,108760.0,1.71877224]
[1752028166867,0.54682606,108770.0,108760.0,1.44674284]
[1752028167166,0.52405606,108770.0,108760.0,1.77674284]
[1752028167467,0.52405606,108770.0,108760.0,1.27559516]
[1752028167655,0.52405606,108770.0,108760.0,1.77674284]
[1752028168267,0.52405606,108770.0,108760.0,1.27559516]
[1752028168467,0.52405606,108770.0,108760.0,1.77674284]
[1752028168668,0.52405606,108770.0,108760.0,1.77674314]
[1752028169575,0.52405606,108770.0,108760.0,1.76237306]
[1752028169760,0.52405606,108770.0,108760.0,1.74800268]
[1752028169957,0.52405606,108770.0,108760.0,1.49742884]
[1752028170161,0.54682606,108770.0,108760.0,1.74800268]
[1752028170362,0.54682606,108770.0,108760.0,1.87236083]
[1752028171369,0.54682606,108770.0,108760.0,1.83050853]
[1752028172672,0.52405606,108770.0,108760.0,1.83050853]
[1752028175670,0.52405606,108770.0,108760.0,1.32936085]
[1752028175872,0.52405606,108770.0,108760.0,1.57993469]
[1752028177372,0.27348222,108770.0,108760.0,1.74800268]
[1752028178074,0.30854936,108770.0,108760.0,1.74800268]
[1752028181278,0.30854936,108770.0,108760.0,1.74756268]
[1752028186181,0.30854936,108770.0,108760.0,1.246415]
[1752028186480,0.30854936,108770.0,108760.0,1.74756268]
[1752028189178,0.30854936,108770.0,108760.0,1.49698884]
[1752028190778,0.27348222,108770.0,108760.0,1.55217111]
[1752028190984,0.1838301,108770.0,108760.0,1.59813221]
[1752028191186,0.2000201,108770.0,108760.0,1.87806044]
[1752028191380,0.01619,108770.0,108760.0,1.87806044]
[1752028191585,0.1146803,108780.0,108770.0,0.18383]
[1752028191586,0.2757349,108780.0,108770.0,0.18383]
[1752028191786,0.2919249,108780.0,108770.0,1.16997098]
[1752028192085,0.2919249,108780.0,108770.0,1.0320349]
[1752028192784,0.2959249,108780.0,108770.0,1.0320349]
[1752028197590,0.2499697,108780.0,108770.0,1.0320349]
[1752028197892,0.02019,108780.0,108770.0,1.0320349]
[1752028198190,0.004,108780.0,108770.0,0.92168611]
[1752028198390,0.1878131,108780.0,108770.0,0.92168611]
[1752028199292,0.1858131,108780.0,108770.0,0.92168611]
[1752028199490,0.1858131,108780.0,108770.0,1.00441182]
[1752028199895,0.1858131,108780.0,108770.0,0.92168611]
[1752028200091,0.1838131,108780.0,108770.0,0.92168611]
[1752028201394,0.1838131,108780.0,108770.0,1.0320349]
[1752028204200,0.1838131,108780.0,108770.0,0.92168611]
[1752028204799,0.2000031,108780.0,108770.0,0.67111227]
[1752028204996,0.45057694,108780.0,108770.0,0.92168611]
[1752028205196,0.48147694,108780.0,108770.0,0.92168611]
[1752028207589,0.48147694,108780.0,108770.0,1.00439445]
[1752028207993,0.51257694,108780.0,108770.0,1.00439445]
[1752028208199,0.51257694,108780.0,108770.0,0.92168611]
[1752028208501,0.51257694,108780.0,108770.0,0.92743943]
[1752028208702,0.2620031,108780.0,108770.0,0.92743943]
[1752028209797,0.51257694,108780.0,108770.0,0.92743943]
[1752028212799,0.51257694,108780.0,108770.0,0.89533943]
[1752028212999,0.51257694,108780.0,108770.0,1.00568822]
[1752028213498,0.51257694,108780.0,108770.0,0.99039822]
[1752028213697,0.51257694,108780.0,108770.0,1.00568822]
[1752028215503,0.51257694,108780.0,108770.0,0.99131911]
[1752028215701,0.51257694,108780.0,108770.0,1.00568904]
[1752028216003,0.76315078,108780.0,108770.0,0.93568904]
[1752028216309,0.51257694,108780.0,108770.0,1.56080904]
[1752028217004,0.49638694,108780.0,108770.0,1.56080904]
[1752028217212,0.51292694,108780.0,108770.0,1.56080904]
[1752028217605,0.51292694,108780.0,108770.0,1.45046025]
[1752028218213,0.51292694,108780.0,108770.0,1.56080904]
[1752028219009,0.51292694,108780.0,108770.0,0.93568904]
[1752028219311,0.53742694,108780.0,108770.0,1.56080904]
[1752028219505,0.51292694,108780.0,108770.0,1.45046025]
[1752028220812,0.51292694,108780.0,108770.0,1.48662231]
[1752028223316,0.51292694,108780.0,108770.0,1.48662272]
[1752028224619,0.51292694,108780.0,108770.0,0.61092888]
[1752028224811,0.51292694,108780.0,108770.0,1.23604888]
[1752028224812,0.78800078,108780.0,108770.0,1.23604888]
[1752028225208,0.78800078,108780.0,108770.0,0.61092888]
[1752028225409,0.78800078,108780.0,108770.0,1.23604888]
[1752028226022,0.78800078,108780.0,108770.0,0.61092888]
[1752028226209,0.78800078,108780.0,108770.0,1.23604888]
[1752028226811,0.53742694,108780.0,108770.0,1.23604888]
[1752028227017,0.2868531,108780.0,108770.0,1.23604888]
[1752028227316,0.2868531,108780.0,108770.0,1.48662272]
[1752028227317,0.53742694,108780.0,108770.0,1.48662272]
[1752028229011,0.53742694,108780.0,108770.0,1.48662297]
[1752028230218,0.49638694,108780.0,108770.0,1.48662297]
[1752028230428,0.51292694,108780.0,108770.0,1.48662297]
[1752028230724,0.49638694,108780.0,108770.0,1.48662297]
[1752028230908,0.51292694,108780.0,108770.0,1.54942297]
[1752028231420,0.2623531,108780.0,108770.0,1.51942297]
[1752028231619,0.1838131,108780.0,108770.0,1.51942297]
[1752028231812,0.1838131,108780.0,108770.0,1.54942297]
[1752028232211,0.1838131,108780.0,108770.0,1.57300297]
[1752028233019,0.2003531,108780.0,108770.0,1.57300297]
[1752028233220,0.45092694,108780.0,108770.0,1.57300297]
[1752028234923,0.2003531,108780.0,108770.0,1.32242913]
[1752028235222,0.45092694,108780.0,108770.0,1.57300297]
[1752028235421,0.48232694,108780.0,108770.0,1.57300297]
[1752028235825,0.51402694,108780.0,108770.0,1.57300297]
[1752028236525,0.51402694,108780.0,108770.0,1.54300297]
[1752028237223,0.51402694,108780.0,108770.0,0.38047297]
[1752028237425,0.51402694,108780.0,108770.0,0.72221913]
[1752028237626,0.51402694,108780.0,108770.0,0.97279297]
[1752028237822,0.51402694,108780.0,108770.0,1.17311207]
[1752028238022,0.51402694,108780.0,108770.0,1.19669207]
[1752028238524,0.51402694,108780.0,108770.0,1.53669207]
[1752028239120,0.51402694,108780.0,108770.0,1.56799207]
[1752028241028,0.51402694,108780.0,108770.0,1.55362148]
[1752028241232,0.51402694,108780.0,108770.0,1.56799144]
[1752028243537,0.51402694,108780.0,108770.0,1.62315697]
[1752028243833,0.51402694,108780.0,108770.0,1.56799144]
[1752028245236,0.49748694,108780.0,108770.0,1.56799144]
[1752028245438,0.2469131,108780.0,108770.0,1.59849144]
[1752028246025,0.49748694,108780.0,108770.0,1.59849144]
[1752028246426,0.49748694,108780.0,108770.0,1.59849127]
[1752028247525,0.51398694,108780.0,108770.0,1.59849127]
[1752028248232,0.51398694,108780.0,108770.0,1.57092746]
[1752028248635,0.58970269,108790.0,108780.0,0.183812]
[1752028248932,0.58970269,108790.0,108780.0,0.52905765]
[1752028248933,0.67240269,108790.0,108780.0,0.52905765]
[1752028249336,0.42182885,108790.0,108780.0,0.52905765]
[1752028249632,0.67240269,108790.0,108780.0,0.52905765]
[1752028249833,0.67440269,108790.0,108780.0,0.52905765]
[1752028250532,0.67640269,108790.0,108780.0,0.52905765]
[1752028252033,0.67640269,108790.0,108780.0,0.51468786]
[1752028252233,0.67640269,108790.0,108780.0,0.23711112]
[1752028252433,0.67640269,108790.0,108780.0,0.46499496]
[1752028253224,0.67640269,108790.0,108780.0,0.48768496]
[1752028253536,0.67640269,108790.0,108780.0,0.46499496]
[1752028254237,0.67640269,108790.0,108780.0,0.50636195]
[1752028256836,0.0371,108790.0,108780.0,1.08693579]
[1752028257038,0.38226084,108800.0,108790.0,0.1837953]
[1752028257039,0.00013758,108800.0,108790.0,0.1837953]
[1752028257335,0.00013758,108800.0,108790.0,1.82772239]
[1752028257938,0.00013758,108800.0,108790.0,1.88287838]